bitfinex-derivatives/quotes_SOLF0:USTF0_20250909
["timestamp","ask_amount","ask_price","bid_price","bid_amount"]
[1757392141487,7.22,215.36,215.26,3.8]
[1757392141688,7.22,215.36,215.27,3.65468499]
[1757392141882,7.22,215.36,215.28,3.65468499]
[1757392142078,7.22,215.36,215.29,3.65468499]
[1757392142282,7.22,215.36,215.3,3.65472447]
[1757392142478,7.22,215.36,215.29,3.8]
[1757392142683,7.22,215.36,215.3,3.65434936]
[1757392142888,7.22,215.36,215.29,3.8]
[1757392143092,7.22,215.36,215.3,3.65433681]
[1757392143387,7.22,215.36,215.29,3.8]
[1757392143588,7.22,215.36,215.3,3.65409094]
[1757392143889,7.22,215.36,215.29,3.8]
[1757392144088,7.22,215.36,215.3,3.65409822]
[1757392144287,7.22,215.36,215.29,3.8]
[1757392144485,7.22,215.36,215.3,3.65412745]
[1757392144686,2.08702813,215.39,215.31,7.45412745]
[1757392144889,7.22,215.38,215.31,3.8]
[1757392146993,7.22,215.38,215.32,3.65202667]
[1757392147185,7.22,215.38,215.31,3.8]
[1757392147497,7.22,215.38,215.32,3.65251446]
[1757392147792,7.22,215.38,215.31,3.8]
[1757392147984,2.08702813,215.49,215.24,12.52137135]
[1757392148193,2.08702813,215.34,215.25,11.10200991]
[1757392148385,2.08702813,215.34,215.25,7.45]
[1757392148781,7.22,215.35,215.25,7.45]
[1757392152390,13.94,215.54,215.31,2.08702813]
[1757392152594,7.22,215.43,215.32,7.45]
[1757392154995,7.22,215.43,215.35,7.45]
[1757392155186,7.02,215.46,215.35,7.45]
[1757392155588,2.08702813,215.44,215.35,7.45]
[1757392155893,7.02,215.43,215.35,7.45]
[1757392156694,7.02,215.43,215.31,7.45]
[1757392157195,2.08702813,215.44,215.31,11.28839741]
[1757392157398,7.02,215.43,215.31,11.28839741]
[1757392158891,2.08702813,215.44,215.31,11.28839741]
[1757392159095,7.02,215.43,215.31,11.28839741]
[1757392159293,2.08702813,215.44,215.31,11.28839741]
[1757392159490,7.02,215.43,215.31,11.28839741]
[1757392160095,7.02,215.43,215.32,3.63666133]
[1757392160295,7.02,215.43,215.33,3.63666133]
[1757392160494,7.02,215.43,215.34,3.63666133]
[1757392160695,7.02,215.43,215.35,3.63666133]
[1757392160895,7.02,215.43,215.36,3.63666133]
[1757392161098,7.02,215.43,215.34,7.45]
[1757392161294,2.08702813,215.41,215.35,3.63666599]
[1757392161496,7.02,215.4,215.3,7.45]
[1757392161698,7.02,215.4,215.31,3.63856938]
[1757392161888,7.02,215.4,215.32,3.63856938]
[1757392162092,7.02,215.4,215.33,3.63856938]
[1757392162400,7.02,215.4,215.31,7.45]
[1757392162589,7.02,215.4,215.33,7.45]
[1757392162898,7.02,215.4,215.34,3.63822105]
[1757392163093,7.02,215.43,215.35,3.63822105]
[1757392163298,7.02,215.43,215.33,7.45]
[1757392163501,7.02,215.43,215.34,3.63782614]
[1757392163797,7.02,215.43,215.35,3.63782614]
[1757392163998,7.02,215.43,215.33,7.45]
[1757392164198,7.02,215.43,215.34,3.63781494]
[1757392164398,7.02,215.43,215.35,3.63781494]
[1757392164592,7.02,215.43,215.36,3.63781494]
[1757392164796,7.02,215.43,215.33,7.45]
[1757392164997,7.02,215.43,215.34,3.63760701]
[1757392165300,7.02,215.43,215.35,3.63760701]
[1757392165506,7.02,215.43,215.36,3.63760701]
[1757392165802,7.02,215.43,215.33,7.45]
[1757392166096,7.02,215.43,215.34,3.63820161]
[1757392166295,116.34,215.46,215.31,7.45]
[1757392166296,7.02,215.4,215.31,7.45]
[1757392166496,9.10702813,215.4,215.32,3.64010705]
[1757392166694,9.10702813,215.4,215.33,3.64010705]
[1757392166895,9.10702813,215.4,215.31,7.45]
[1757392167194,9.10702813,215.4,215.32,3.63997464]
[1757392167399,9.10702813,215.4,215.33,3.63997464]
[1757392167595,9.10702813,215.4,215.27,11.29536871]
[1757392167596,2.08702813,215.37,215.27,11.29536871]
[1757392167800,7.02,215.36,215.28,3.6412152]
[1757392168000,7.02,215.36,215.29,3.6412152]
[1757392168201,7.02,215.36,215.3,3.6412152]
[1757392168402,7.02,215.33,215.24,3.84536871]
[1757392168606,7.02,215.33,215.25,3.64301973]
[1757392168792,7.02,215.33,215.26,3.64301973]
[1757392169105,7.02,215.33,215.27,3.64301973]
[1757392169294,7.02,215.33,215.23,7.45]
[1757392169494,7.02,215.33,215.24,11.09342879]
[1757392169698,7.02,215.33,215.25,3.64342879]
[1757392169894,7.02,215.33,215.26,3.64342879]
[1757392170097,7.02,215.33,215.27,3.64342879]
[1757392170297,7.02,215.33,215.28,3.64342879]
[1757392170601,7.02,215.33,215.24,7.45]
[1757392170798,7.02,215.33,215.25,3.64348204]
[1757392171102,7.02,215.33,215.26,3.64348204]
[1757392171304,7.02,215.33,215.27,3.64348204]
[1757392171503,7.02,215.3,215.24,7.45]
[1757392171700,2.08702813,215.31,215.25,3.64321281]
[1757392172001,7.02,215.3,215.26,3.64321281]
[1757392172201,7.02,215.3,215.27,3.64321281]
[1757392172404,7.02,215.3,215.28,3.64258945]
[1757392172601,7.02,215.3,215.24,7.45]
[1757392172904,7.02,215.3,215.26,7.45]
[1757392173102,7.02,215.3,215.27,3.64259996]
[1757392173300,7.02,215.3,215.28,3.64259996]
[1757392173600,7.02,215.3,215.26,7.45]
[1757392173800,7.02,215.3,215.27,3.64228083]
[1757392173996,7.02,215.3,215.26,7.45]
[1757392174196,7.02,215.3,215.27,3.64234185]
[1757392174401,7.02,215.3,215.26,7.45]
[1757392174601,7.02,215.3,215.27,3.64231224]
[1757392174801,7.02,215.3,215.26,7.45]
[1757392175002,7.02,215.3,215.27,3.64203975]
[1757392175302,7.02,215.3,215.26,7.45]
[1757392175503,7.02,215.3,215.27,3.64173572]
[1757392175693,2.08702813,215.29,215.22,3.84536871]
[1757392175898,7.02,215.28,215.23,3.6419279]
[1757392176098,7.02,215.28,215.24,3.6419279]
[1757392176303,39.42,215.37,215.25,3.6419279]
[1757392176500,7.02,215.25,215.21,7.45]
[1757392176802,7.02,215.25,215.22,3.6421656]
[1757392177005,1.33798168,215.24,215.23,3.6421656]
[1757392178896,1.33798168,215.24,215.21,7.45]
[1757392179099,7.02,215.25,215.22,3.64124351]
[1757392179299,7.02,215.25,215.21,7.45]
[1757392179499,7.02,215.25,215.22,3.64033433]
[1757392179705,7.02,215.25,215.21,7.45]
[1757392180003,8.35798168,215.26,215.22,11.09033433]
[1757392180305,7.02,215.25,215.23,3.6388561]
[1757392180500,7.02,215.25,215.22,7.45]
[1757392182205,8.35798168,215.25,215.22,7.45]
[1757392188119,7.02,215.25,215.22,7.45]
[1757392189017,7.33,215.29,215.23,7.47]
[1757392189316,13.94,215.42,215.24,7.47]
[1757392189620,1.33798168,215.3,215.24,7.47]
[1757392189919,8.66798168,215.32,215.25,1.33798168]
[1757392190414,1.33798168,215.3,215.24,7.47]
[1757392190617,8.66798168,215.3,215.24,7.47]
[1757392192521,1.33798168,215.28,215.24,7.47]
[1757392192722,8.66798168,215.28,215.24,7.47]
[1757392194222,7.33,215.27,215.24,7.47]
[1757392195323,1.33798168,215.28,215.24,7.47]
[1757392195518,1.33798168,215.28,215.23,1.33798168]
[1757392195719,8.66798168,215.28,215.24,11.09953183]
[1757392196024,8.66798168,215.28,215.24,7.47]
[1757392196226,7.33,215.27,215.24,7.47]
[1757392196526,7.33,215.3,215.24,7.47]
[1757392196819,7.33,215.27,215.24,7.47]
[1757392197020,1.33798168,215.28,215.24,7.47]
[1757392197219,8.66798168,215.28,215.24,7.47]
[1757392197421,7.33,215.27,215.24,7.47]
[1757392198628,8.66798168,215.28,215.21,7.47]
[1757392198831,1.33798168,215.26,215.22,3.63064996]
[1757392199130,8.66798168,215.26,215.19,7.47]
[1757392199330,8.66798168,215.24,215.2,3.63213227]
[1757392199529,8.66798168,215.24,215.21,11.10213227]
[1757392199736,8.66798168,215.24,215.21,7.47]
[1757392200222,7.33,215.24,215.21,7.47]
[1757392200420,8.66798168,215.23,215.17,7.47]
[1757392200618,1.33798168,215.21,215.18,11.10345706]
[1757392200831,1.33798168,215.21,215.18,7.47]
[1757392201020,8.66798168,215.21,215.18,7.47]
[1757392201729,8.66798168,215.21,215.14,7.47]
[1757392202031,8.66798168,215.21,215.15,3.63482756]
[1757392202224,7.33,215.2,215.16,11.10482756]
[1757392202426,7.33,215.2,215.17,11.10482756]
[1757392202631,7.33,215.2,215.18,3.63482756]
[1757392202822,7.33,215.2,215.17,7.47]
[1757392203024,8.66798168,215.19,215.14,7.47]
[1757392203226,7.33,215.18,215.15,11.10542416]
[1757392203426,1.33798168,215.19,215.16,11.10542416]
[1757392203729,1.33798168,215.19,215.17,3.63542416]
[1757392203934,1.33798168,215.19,215.16,7.47]
[1757392204128,1.33798168,215.19,215.17,3.63482407]
[1757392204431,1.33798168,215.19,215.16,7.47]
[1757392204633,8.66798168,215.19,215.16,7.47]
[1757392205129,8.66798168,215.19,215.17,3.63548633]
[1757392205321,8.66798168,215.19,215.16,7.47]
[1757392205521,8.66798168,215.19,215.17,3.63497621]
[1757392205724,8.66798168,215.19,215.16,7.47]
[1757392206132,8.66798168,215.19,215.17,3.6350255]
[1757392206330,8.66798168,215.19,215.16,7.47]
[1757392206533,8.66798168,215.19,215.17,3.63454886]
[1757392206727,8.66798168,215.19,215.13,8.80798168]
[1757392206932,8.66798168,215.19,215.14,3.63453179]
[1757392207133,8.66798168,215.19,215.16,7.47]
[1757392207729,1.33798168,215.19,215.14,7.47]
[1757392207929,7.33,215.27,215.18,7.47]
[1757392208131,1.33798168,215.24,215.19,1.33798168]
[1757392208433,1.33798168,215.26,215.2,7.47]
[1757392208933,7.33,215.23,215.2,7.47]
[1757392209133,7.33,215.23,215.17,8.80798168]
[1757392209326,1.33798168,215.24,215.18,3.63613475]
[1757392209532,8.66798168,215.24,215.2,7.47]
[1757392211338,8.66798168,215.24,215.21,11.10924804]
[1757392211532,8.66798168,215.24,215.21,7.47]
[1757392213130,8.66798168,215.24,215.22,3.64164289]
[1757392213335,8.66798168,215.24,215.21,7.47]
[1757392213544,8.66798168,215.24,215.22,3.64219829]
[1757392213731,8.66798168,215.24,215.21,7.47]
[1757392213927,7.12,215.31,215.22,3.64255443]
[1757392214131,8.45798168,215.33,215.26,1.33798168]
[1757392214336,8.45798168,215.33,215.27,3.6420098]
[1757392214532,7.12,215.32,215.28,11.0520098]
[1757392214732,7.12,215.32,215.29,3.63915066]
[1757392214941,8.45798168,215.32,215.24,11.25536871]
[1757392215235,1.33798168,215.28,215.25,3.63883923]
[1757392215436,1.33798168,215.28,215.21,3.84536871]
[1757392215437,7.12,215.27,215.26,3.63883923]
[1757392215637,7.12,215.27,215.21,1.33798168]
[1757392215936,8.45798168,215.28,215.22,3.64143472]
[1757392216236,7.12,215.27,215.23,3.64143472]
[1757392216536,7.12,215.27,215.24,3.64143472]
[1757392216730,7.12,215.27,215.25,3.64143472]
[1757392216939,7.12,215.27,215.21,1.33798168]
[1757392217128,7.12,215.27,215.22,11.05174586]
[1757392217332,7.12,215.27,215.23,3.64174586]
[1757392217532,7.12,215.27,215.24,3.64174586]
[1757392217738,7.12,215.27,215.22,7.41]
[1757392217938,7.12,215.27,215.23,3.64230397]
[1757392218138,7.12,215.27,215.24,3.64230397]
[1757392218338,7.12,215.27,215.22,7.41]
[1757392218638,312.3,215.37,215.24,7.41]
[1757392218639,1.33798168,215.3,215.24,7.41]
[1757392218837,7.12,215.29,215.25,11.05266991]
[1757392219135,1.33798168,215.28,215.21,8.74798168]
[1757392219333,1.33798168,215.28,215.22,3.64195925]
[1757392219532,8.45798168,215.28,215.23,11.05195925]
[1757392219729,8.45798168,215.28,215.24,3.64195925]
[1757392219935,8.45798168,215.28,215.25,3.64195925]
[1757392220136,8.45798168,215.28,215.23,7.41]
[1757392220335,8.45798168,215.28,215.24,3.64229883]
[1757392220538,1.33798168,215.3,215.26,7.41]
[1757392220734,8.45798168,215.33,215.26,7.41]
[1757392221134,8.45798168,215.33,215.27,4.97972998]
[1757392221438,8.45798168,215.33,215.28,11.05093412]
[1757392221634,8.45798168,215.33,215.27,1.33798168]
[1757392221635,8.45798168,215.33,215.27,8.74798168]
[1757392221836,1.33798168,215.35,215.29,7.41]
[1757392222238,8.45798168,215.35,215.29,7.41]
[1757392222434,7.12,215.3,215.24,7.41]
[1757392222635,7.12,215.28,215.25,3.64049418]
[1757392222838,7.12,215.28,215.22,1.33798168]
[1757392223039,7.12,215.28,215.23,11.0513887]
[1757392223237,7.12,215.28,215.24,3.6413887]
[1757392223434,7.12,215.28,215.23,7.41]
[1757392223435,7.12,215.28,215.25,3.6413887]
[1757392223635,1.33798168,215.29,215.26,3.6413887]
[1757392223834,1.33798168,215.31,215.25,7.41]
[1757392224040,1.33798168,215.31,215.26,3.64131929]
[1757392224240,7.12,215.3,215.25,7.41]
[1757392224838,1.33798168,215.31,215.24,7.41]
[1757392225138,1.33798168,215.31,215.25,11.0512555]
[1757392225338,1.33798168,215.31,215.25,7.41]
[1757392225641,1.33798168,215.31,215.26,3.64101478]
[1757392225844,8.45798168,215.31,215.26,7.41]
[1757392226439,7.12,215.3,215.26,7.41]
[1757392226938,8.45798168,215.31,215.23,1.33798168]
[1757392227240,7.12,215.28,215.24,11.05212204]
[1757392227538,7.12,215.28,215.25,3.64212204]
[1757392227738,7.12,215.28,215.26,3.64212204]
[1757392227939,7.12,215.28,215.24,7.41]
[1757392228139,7.12,215.28,215.25,11.0516145]
[1757392228338,7.12,215.28,215.26,3.6416145]
[1757392228538,7.12,215.28,215.25,7.41]
[1757392228842,7.12,215.28,215.26,3.64149207]
[1757392229038,7.12,215.28,215.25,7.41]
[1757392229233,8.45798168,215.29,215.26,3.64131886]
[1757392229435,1.33798168,215.29,215.23,7.41]
[1757392229642,8.45798168,215.27,215.24,3.64251981]
[1757392229840,8.45798168,215.27,215.25,3.64251981]
[1757392230037,7.12,215.35,215.26,4.97977956]
[1757392230340,7.12,215.35,215.29,1.33798168]
[1757392230545,1.33798168,215.36,215.3,11.05179788]
[1757392230840,1.33798168,215.38,215.31,4.97977956]
[1757392231040,1.33798168,215.38,215.31,1.33798168]
[1757392231944,1.33798168,215.41,215.33,8.74798168]
[1757392232238,320.75798168,215.43,215.35,1.33798168]
[1757392233038,319.42,215.43,215.35,1.33798168]
[1757392233243,8.45798168,215.43,215.37,8.74798168]
[1757392235845,8.45798168,215.43,215.35,1.33798168]
[1757392236045,1.33798168,215.41,215.35,1.33798168]
[1757392236745,1.33798168,215.39,215.34,7.41]
[1757392236947,8.45798168,215.39,215.34,7.41]
[1757392237147,8.45798168,215.39,215.32,7.41]
[1757392237846,8.45798168,215.39,215.32,8.74798168]
[1757392238446,7.12,215.39,215.32,7.41]
[1757392240848,7.12,215.39,215.33,3.62039978]
[1757392241051,7.12,215.39,215.32,7.41]
[1757392246553,7.5,215.5,215.34,7.46]
[1757392246754,7.5,215.45,215.34,7.46]
[1757392249355,7.5,215.5,215.37,2.08785293]
[1757392249549,7.5,215.5,215.38,7.46]
[1757392250058,7.5,215.5,215.39,4.1778]
[1757392250849,7.5,215.5,215.38,7.46]
[1757392251055,7.5,215.5,215.41,7.46]
[1757392251552,7.5,215.5,215.42,3.61217446]
[1757392251748,7.5,215.5,215.41,7.46]
[1757392251948,7.5,215.5,215.42,3.61244522]
[1757392252152,7.5,215.5,215.41,7.46]
[1757392252353,7.5,215.5,215.42,3.61244522]
[1757392252555,7.5,215.5,215.41,11.6373]
[1757392252754,7.5,215.5,215.43,7.46]
[1757392253855,2.08785293,215.55,215.43,7.46]
[1757392254056,7.5,215.54,215.43,9.54785293]
[1757392254754,7.5,215.54,215.43,7.46]
[1757392256846,7.5,215.54,215.42,2.08785293]
[1757392256847,7.5,215.54,215.45,7.46]
[1757392257458,7.5,215.54,215.45,9.54785293]
[1757392258050,380.16460958,215.69,215.45,2.08785293]
[1757392258254,7.5,215.64,215.49,7.46]
[1757392258462,7.5,215.62,215.49,7.46]
[1757392259551,496.93220281,215.69,215.49,7.46]
[1757392259552,7.5,215.59,215.49,7.46]
[1757392259862,7.5,215.59,215.46,2.08785293]
[1757392260158,7.5,215.56,215.46,2.08785293]
[1757392260359,7.5,215.56,215.47,7.46]
[1757392260856,7.5,215.65,215.5,2.08785293]
[1757392261156,2.08785293,215.64,215.54,7.46]
[1757392262464,7.5,215.7,215.57,2.08785293]
[1757392262659,7.5,215.69,215.57,9.54785293]
[1757392264760,2.08785293,215.7,215.57,9.54785293]
[1757392264956,7.5,215.69,215.57,9.54785293]
[1757392265153,7.5,215.66,215.54,2.08785293]
[1757392265955,7.5,215.66,215.53,7.46]
[1757392266163,2.08785293,215.67,215.53,9.54785293]
[1757392266665,7.5,215.63,215.53,9.54785293]
[1757392268462,2.08785293,215.64,215.53,9.54785293]
[1757392268657,7.5,215.63,215.53,9.54785293]
[1757392269165,7.5,215.63,215.53,7.46]
[1757392273865,9.58785293,215.63,215.53,7.46]
[1757392275277,14.3,215.65,215.53,7.46]
[1757392275278,7.75,215.61,215.53,7.46]
[1757392276976,7.75,215.61,215.5,64.90102892]
[1757392277277,7.75,215.58,215.49,7.44]
[1757392278073,7.75,215.55,215.44,7.44]
[1757392282183,2.08785293,215.54,215.44,7.44]
[1757392282575,7.75,215.55,215.44,7.44]
[1757392282781,7.75,215.55,215.46,7.44]
[1757392290990,2.08785293,215.54,215.46,7.44]
[1757392294396,7.75,215.55,215.48,7.44]
[1757392294695,35.89785293,215.6,215.49,3.62123562]
[1757392294900,7.75,215.6,215.51,7.44]
[1757392295197,2.08785293,215.63,215.53,7.44]
[1757392296706,7.75,215.62,215.53,7.44]
[1757392298291,7.75,215.62,215.55,1.33355048]
[1757392298602,9.08355048,215.62,215.56,7.44]
[1757392312109,9.08355048,215.62,215.55,1.33355048]
[1757392312910,7.75,215.62,215.55,1.33355048]
[1757392313108,9.08355048,215.62,215.55,1.33355048]
[1757392314717,1.33355048,215.61,215.55,1.33355048]
[1757392314922,7.4,215.6,215.55,1.33355048]
[1757392315119,8.73355048,215.61,215.55,1.33355048]
[1757392319218,7.4,215.61,215.55,1.33355048]
[1757392320014,1.33355048,215.57,215.49,1.33355048]
[1757392320221,1.33355048,215.59,215.53,1.33355048]
[1757392320417,7.4,215.61,215.54,7.45]
[1757392320615,7.4,215.61,215.57,7.45]
[1757392321022,8.73355048,215.64,215.57,7.45]
[1757392321213,7.4,215.64,215.58,1.33355048]
[1757392321813,8.73355048,215.64,215.57,7.45]
[1757392323123,7.4,215.61,215.57,7.45]
[1757392323318,7.4,215.61,215.54,8.78355048]
[1757392324025,1.33355048,215.59,215.54,7.45]
[1757392324321,1.33355048,215.59,215.51,1.33355048]
[1757392324322,7.4,215.58,215.51,1.33355048]
[1757392324515,7.4,215.58,215.52,3.62451979]
[1757392324722,7.4,215.58,215.51,1.33355048]
[1757392325026,7.4,215.58,215.52,3.6247855]
[1757392325228,7.4,215.58,215.51,8.78355048]
[1757392325423,7.4,215.58,215.52,3.62531795]
[1757392325619,32.98,215.62,215.49,1.33355048]
[1757392325620,7.4,215.56,215.49,1.33355048]
[1757392325826,7.4,215.56,215.5,3.62551664]
[1757392326026,7.4,215.56,215.52,7.45]
[1757392326925,7.4,215.6,215.52,7.45]
[1757392327226,1.33355048,215.62,215.55,1.33355048]
[1757392327426,1.33355048,215.62,215.56,7.45]
[1757392327637,8.73355048,215.64,215.56,7.45]
[1757392329033,7.4,215.61,215.54,1.33355048]
[1757392330633,1.33355048,215.6,215.54,1.33355048]
[1757392330836,1.33355048,215.6,215.54,8.78355048]
[1757392331038,7.4,215.61,215.54,8.78355048]
[1757392331335,7.4,215.61,215.55,3.6228706]
[1757392331540,7.4,215.61,215.54,8.78355048]
[1757392331740,1.33355048,215.6,215.55,3.62287101]
[1757392331942,8.73355048,215.6,215.54,8.78355048]
[1757392332736,8.73355048,215.6,215.54,7.45]
[1757392333940,8.73355048,215.6,215.52,1.33355048]
[1757392334142,8.73355048,215.6,215.53,3.62642227]
[1757392334341,8.73355048,215.6,215.52,8.77355048]
[1757392334641,8.73355048,215.6,215.53,3.62720222]
[1757392334837,8.73355048,215.6,215.52,8.77355048]
[1757392335038,8.73355048,215.6,215.53,3.62737695]
[1757392335239,8.73355048,215.6,215.52,8.77355048]
[1757392335432,7.23,215.57,215.53,3.62752012]
[1757392335637,7.23,215.57,215.53,7.44]
[1757392336440,7.23,215.57,215.54,3.6293905]
[1757392336741,7.23,215.57,215.53,7.44]
[1757392336942,7.23,215.57,215.54,3.62938948]
[1757392337143,7.23,215.57,215.53,7.44]
[1757392337440,7.23,215.57,215.54,3.6293905]
[1757392337639,7.23,215.57,215.53,7.44]
[1757392337842,7.23,215.57,215.54,3.63073254]
[1757392338040,7.23,215.57,215.53,7.44]
[1757392338241,7.23,215.57,215.54,3.63073815]
[1757392338444,7.23,215.57,215.55,3.63073815]
[1757392338745,7.23,215.57,215.51,1.33355048]
[1757392338941,8.56355048,215.53,215.47,7.44]
[1757392339134,1.33355048,215.53,215.48,3.63471884]
[1757392339342,7.23,215.52,215.49,3.63471884]
[1757392339538,7.23,215.52,215.5,3.63471884]
[1757392339742,1.33355048,215.53,215.47,7.44]
[1757392339940,1.33355048,215.53,215.48,3.63688748]
[1757392340146,1.33355048,215.53,215.49,3.63688748]
[1757392340442,7.23,215.52,215.47,7.44]
[1757392340647,8.56355048,215.51,215.48,3.63681358]
[1757392340837,8.56355048,215.51,215.49,3.63681358]
[1757392341041,8.56355048,215.51,215.47,7.44]
[1757392341247,8.56355048,215.51,215.48,3.63678586]
[1757392341450,8.56355048,215.51,215.45,7.44]
[1757392341650,7.23,215.5,215.47,7.44]
[1757392341844,7.23,215.54,215.48,11.07548934]
[1757392342045,1.33355048,215.52,215.44,7.44]
[1757392342244,1.33355048,215.52,215.46,1.33355048]
[1757392342444,7.23,215.51,215.47,3.63547812]
[1757392342645,7.23,215.51,215.48,3.63547812]
[1757392342847,7.23,215.51,215.45,1.33355048]
[1757392343151,7.23,215.51,215.47,7.44]
[1757392343345,7.23,215.51,215.48,3.6341978]
[1757392343544,7.23,215.51,215.47,7.44]
[1757392343739,7.23,215.51,215.48,3.63323155]
[1757392343947,1.33355048,215.52,215.45,1.33355048]
[1757392344139,1.33355048,215.52,215.46,11.07287707]
[1757392344343,1.33355048,215.52,215.47,3.63287707]
[1757392344541,1.33355048,215.52,215.48,7.44]
[1757392344842,1.33355048,215.52,215.46,7.44]
[1757392345041,1.33355048,215.52,215.47,3.63221449]
[1757392345238,8.56355048,215.52,215.48,7.44]
[1757392345747,1.33355048,215.57,215.5,7.44]
[1757392346252,1.33355048,215.57,215.51,3.63031665]
[1757392346551,8.56355048,215.57,215.5,7.44]
[1757392346751,8.56355048,215.57,215.51,3.6306415]
[1757392346952,8.56355048,215.57,215.5,7.44]
[1757392347149,1.33355048,215.62,215.56,7.44]
[1757392347349,7.23,215.63,215.57,1.33355048]
[1757392347852,1.33355048,215.64,215.58,7.44]
[1757392348453,1.33355048,215.65,215.58,8.77355048]
[1757392354055,7.23,215.66,215.58,8.77355048]
[1757392354259,1.33355048,215.65,215.58,7.44]
[1757392355755,8.56355048,215.63,215.55,1.33355048]
[1757392355960,8.56355048,215.63,215.55,8.77355048]
[1757392356649,1.33355048,215.61,215.55,7.44]
[1757392357048,36.44,215.7,215.55,7.44]
[1757392357049,8.56355048,215.59,215.55,7.44]
[1757392357551,7.23,215.58,215.55,7.44]
[1757392357754,1.33355048,215.57,215.52,7.44]
[1757392358053,7.23,215.56,215.52,7.44]
[1757392358255,7.23,215.56,215.51,7.44]
[1757392358452,7.23,215.56,215.5,8.77355048]
[1757392359349,1.33355048,215.57,215.5,8.77355048]
[1757392360361,9.31455117,215.59,215.5,7.44]
[1757392361162,9.31455117,215.59,215.51,3.62811312]
[1757392361361,9.31455117,215.59,215.52,3.62811312]
[1757392361655,7.23,215.59,215.5,7.44]
[1757392361860,7.23,215.59,215.52,7.43]
[1757392362756,7.23,215.57,215.48,7.43]
[1757392363060,9.31455117,215.55,215.49,3.62888125]
[1757392363256,9.35455117,215.55,215.48,7.43]
[1757392363460,9.35455117,215.55,215.49,3.6286782]
[1757392363654,9.35455117,215.55,215.48,7.43]
[1757392363852,9.35455117,215.55,215.49,3.62868115]
[1757392364056,9.35455117,215.55,215.48,7.43]
[1757392366461,9.35455117,215.55,215.49,3.62725399]
[1757392366759,9.35455117,215.55,215.48,7.43]
[1757392366955,9.35455117,215.55,215.49,3.62687521]
[1757392367160,9.35455117,215.55,215.48,7.43]
[1757392367364,9.35455117,215.55,215.49,3.62686334]
[1757392367564,9.35455117,215.55,215.48,7.43]
[1757392367766,9.35455117,215.55,215.49,3.62675907]
[1757392367965,9.35455117,215.55,215.48,7.43]
[1757392368260,9.35455117,215.55,215.49,3.62675907]
[1757392368457,9.35455117,215.55,215.48,7.43]
[1757392368661,9.35455117,215.55,215.49,3.62664934]
[1757392368862,9.35455117,215.55,215.48,7.43]
[1757392370169,2.08455117,215.55,215.46,61.51478307]
[1757392370370,7.27,215.54,215.47,3.6268488]
[1757392370561,7.27,215.54,215.46,68.63478307]
[1757392370765,7.27,215.54,215.47,3.6267306]
[1757392370965,7.27,215.54,215.46,68.63478307]
[1757392371167,7.27,215.54,215.47,3.6267306]
[1757392371365,7.27,215.54,215.48,3.6267306]
[1757392371561,7.27,215.54,215.46,68.63478307]
[1757392371761,7.27,215.54,215.47,3.62595429]
[1757392371961,7.27,215.54,215.48,3.62595429]
[1757392372163,7.27,215.54,215.47,7.12]
[1757392372371,7.27,215.54,215.48,3.62594835]
[1757392372568,7.27,215.54,215.47,7.12]
[1757392372771,7.27,215.54,215.48,3.62574555]
[1757392373071,7.27,215.54,215.47,7.12]
[1757392373273,7.27,215.54,215.48,3.62650983]
[1757392373474,7.27,215.54,215.47,7.12]
[1757392373675,7.27,215.54,215.48,3.62653103]
[1757392373973,7.27,215.54,215.47,7.12]